fUST/lending_fUST_20240503
["ID","MTS","AMOUNT","RATE_DAILY","PERIOD"]
[325319859,1714717897394,39821.96538852,0.00026658,29]
[325319860,1714717922666,166.666666,0.00026986,2]
[325319861,1714718109488,10000.0,0.00026658,29]
[325319863,1714718141944,100000.0,0.00026658,29]
[325319864,1714718153262,1000000.0,0.00026658,29]
[325319865,1714718176680,1000000.0,0.00026658,29]
[325319866,1714718186062,1000000.0,0.00026658,29]
[325319867,1714718200635,1000000.0,0.00026658,29]
[325319868,1714718213343,700000.0,0.00026658,29]
[325319869,1714718295058,96900.0,0.00026658,29]
[325319870,1714718456318,154.65974855,9.999e-05,2]
[325320346,1714718752198,-3003.0126498,0.00020913,2]
[325320946,1714718851091,-212.02369042,0.00020913,2]
[325320947,1714718851112,-398.02368658,0.00026657,2]
[325320948,1714718945105,-196.92232815,0.00026657,2]
[325320949,1714718945126,-157.8074755,0.00026658,2]
[325320950,1714718945148,-166.666666,0.00026986,2]
[325320951,1714718945185,-9381.55295255,0.00027,2]
[325320952,1714718945206,-166.666666,0.00027701,2]
[325320953,1714718945228,-388.1,0.00027978,3]
[325320954,1714718945249,-166.666666,0.00028456,2]
[325320955,1714718945270,-165.508091,0.00028493,2]
[325320956,1714718945297,-3916.0043177,0.0002882,120]
[325320957,1714718945319,-446.64443405,0.000291,2]
[325320958,1714718945342,-166.666666,0.00029211,2]
[325320959,1714718945365,-388.1,0.00029295,5]
[325320960,1714718945388,-166.666666,0.00029967,2]
[325320961,1714718945409,-2000.0,0.0003,2]
[325320962,1714718945431,-229.13179572,0.0003,4]
[325320963,1714718945455,-191.0,0.0003,2]
[325320964,1714718945477,-176.62653573,0.00030511,4]
[325320965,1714718945498,-1967.23254635,0.00030511,7]
[325320966,1714718945519,-388.1,0.00030612,5]
[325320967,1714718945541,-166.666666,0.00030722,2]
[325320968,1714718945564,-166.666666,0.00031477,2]
[325320969,1714718945592,-388.1,0.00031929,5]
[325320970,1714718956087,-388.1,0.00033246,7]
[325320971,1714718956109,-493.0,0.00033856,2]
[325320972,1714718956131,-247.889,0.00033856,2]
[325320973,1714718961918,2000.0,0.0003,2]
[325320974,1714718983871,2000.0,0.0003,2]
[325320975,1714719005886,2000.0,0.0003,2]
[325320976,1714719009041,226.3,0.00028088,3]
[325320977,1714719009706,226.3,0.00029395,5]
[325320978,1714719010299,226.3,0.00030702,5]
[325320979,1714719010939,226.3,0.00032009,7]
[325320980,1714719011551,226.3,0.00033316,7]
[325320981,1714719015838,211.309,0.00033856,2]
[325321024,1714719032383,-226.3,0.00034623,7]
[325321025,1714719032392,-2679.19695018,0.00034999,4]
[325321026,1714719032402,-1159.31784077,0.00035,4]
[325321027,1714719032411,-556.910315,0.00035616,120]
[325321028,1714719032420,-165.508091,0.00035726,2]
[325321029,1714719032430,-631.31042,0.00035814,2]
[325321031,1714719032439,-226.3,0.0003593,14]
[325321033,1714719032447,-350.0,0.00036,4]
[325321035,1714719032457,-631.31042,0.00036511,2]
[325321037,1714719032467,-493.0,0.00036856,2]
[325321039,1714719032476,-150.0,0.00036856,2]
[325321041,1714719032485,-3868.6,0.00036949,2]
[325321043,1714719032495,-153.0,0.00036986,2]
[325321045,1714719032506,-204.0119045,0.00036986,2]
[325321047,1714719032515,-153.0,0.00036986,2]
[325321049,1714719032525,-153.0,0.00036986,2]
[325321051,1714719032535,-204.0119045,0.00036986,2]
[325321053,1714719032545,-153.0,0.00036986,2]
[325321055,1714719032554,-153.0,0.00036986,2]
[325321057,1714719032563,-204.0119045,0.00036986,2]
[325321059,1714719032572,-204.0119045,0.00036986,2]
[325321061,1714719032582,-204.0119045,0.00036986,2]
[325321063,1714719032592,-204.0119045,0.00036986,2]
[325321065,1714719032601,-1980.26055312,0.00037,2]
[325321067,1714719032611,-5000.0,0.00037,4]
[325321069,1714719032622,-10670.17865673,0.00037,5]
[325321071,1714719032631,-153.0,0.00037123,2]
[325321073,1714719032640,-631.31042,0.00037209,2]
[325321075,1714719032650,-150.63846768,0.00037221,2]
[325321077,1714719032659,-226.3,0.00037237,14]
[325321079,1714719032669,-307.6798797,0.0003726,2]
[325321081,1714719032678,-3868.6,0.00037807,2]
[325321082,1714719032688,-407.1418433,0.00037808,2]
[325321085,1714719032697,-153.0,0.00037808,2]
[325321087,1714719032707,-153.0,0.00037808,2]
[325321089,1714719032716,-153.0,0.00037808,2]
[325321091,1714719032726,-153.0,0.00037808,2]
[325321092,1714719032735,-153.0,0.00037808,2]
[325321095,1714719032745,-153.0,0.00037808,2]
[325321096,1714719032754,-153.0,0.00037808,2]
[325321098,1714719032765,-153.0,0.00037808,2]
[325321101,1714719032776,-153.0,0.00037808,2]
[325321103,1714719032786,-153.0,0.00037808,2]
[325321104,1714719032795,-153.0,0.00037808,2]
[325321107,1714719032804,-153.0,0.00037808,2]
[325321108,1714719032814,-301.27693536,0.00037846,4]
[325321110,1714719032823,-631.31042,0.00037907,2]
[325321113,1714719032833,-154.0,0.00038,2]
[325321115,1714719032843,-153.4551898,0.00038082,2]
[325321116,1714719032853,-153.2269241,0.00038082,2]
[325321119,1714719032864,-588.0,0.000382,2]
[325321121,1714719032875,-15015.27,0.00038291,3]
[325321122,1714719032884,-46689.30659044,0.000383,5]
[325321295,1714719045929,-321.71340606,0.00038,30]
[325321296,1714719045939,-8865.69340956,0.000383,5]
[325321297,1714719045948,-2000.0,0.000383,2]
[325321298,1714719045958,-186.76067351,0.00038351,4]
[325321299,1714719045968,-156.80771504,0.00038351,4]
[325321300,1714719045977,-295.47490809,0.00038351,2]
[325321301,1714719045987,-200.12142439,0.00038351,4]
[325321302,1714719045996,-2805.55983897,0.00038351,120]
[325321303,1714719046006,-241.05963326,0.00038351,4]
[325321304,1714719046015,-154.9792503,0.00038351,4]
[325321305,1714719046025,-190.0020275,0.00038351,2]
[325321306,1714719046034,-5792.31156207,0.00038351,4]
[325321307,1714719046043,-1967.23254635,0.00038351,7]
[325321308,1714719046052,-176.62653573,0.00038351,4]
[325321309,1714719046062,-277.06453984,0.00038352,4]
[325321310,1714719046071,-8179.33290272,0.00038352,4]
[325321311,1714719046080,-3868.6,0.00038352,2]
[325321312,1714719046092,-3868.6,0.00038352,2]
[325321313,1714719046101,-3868.6,0.00038352,2]
[325321315,1714719046110,-19858.11749786,0.00038353,5]
[325321317,1714719046119,-94082.08920976,0.00038353,3]
[325321319,1714719046129,-3868.6,0.00038398,2]
[325321321,1714719046139,-3868.6,0.00038398,2]
[325321323,1714719046149,-163.45,0.00038399,2]
[325321324,1714719046158,-163.45,0.00038399,2]
[325321326,1714719046167,-163.45,0.00038399,2]
[325321328,1714719046176,-163.45,0.00038399,2]
[325321329,1714719046187,-163.45,0.00038399,2]
[325321330,1714719046197,-163.45,0.00038399,2]
[325321331,1714719046210,-3868.6,0.00038399,2]
[325321332,1714719046220,-3868.6,0.00038399,2]
[325321333,1714719046230,-3868.6,0.00038399,2]
[325321334,1714719046241,-3868.6,0.00038399,2]
[325321335,1714719046250,-3868.6,0.00038399,2]
[325321337,1714719046260,-3868.6,0.00038399,2]
[325321339,1714719046269,-3868.6,0.00038399,2]
[325321340,1714719046281,-3868.6,0.00038399,2]
[325321341,1714719046292,-3868.6,0.00038399,2]
[325321342,1714719046302,-3868.6,0.00038399,2]
[325321343,1714719046312,-3868.6,0.00038399,2]
[325321344,1714719046321,-3868.6,0.00038399,2]
[325321345,1714719046331,-3868.6,0.00038399,2]
[325321346,1714719046340,-3868.6,0.00038399,2]
[325321347,1714719046350,-3868.6,0.00038399,2]
[325321348,1714719046359,-3868.6,0.00038399,2]
[325321349,1714719046370,-3868.60429991,0.00038399,2]
[325321350,1714719046379,-283.0,0.000384,13]
[325321351,1714719046390,-1011000.0,0.000384,2]
[325321352,1714719046400,-151.0,0.000384,2]
[325321353,1714719046410,-150.5,0.0003847,35]
[325321355,1714719046420,-680.0,0.0003847,35]
[325321357,1714719046430,-150.5,0.0003848,35]
[325321358,1714719046440,-680.0,0.0003848,35]
[325321359,1714719046450,-150.5,0.0003848,35]
[325321360,1714719046460,-150.5,0.0003848,35]
[325321361,1714719046470,-602.55387071,0.00038482,7]
[325321362,1714719046479,-150.5,0.0003849,35]
[325321363,1714719046489,-183.21,0.0003849,35]
[325321364,1714719046499,-680.0,0.0003849,35]
[325321365,1714719046510,-150.5,0.0003849,35]
[325321366,1714719046520,-150.5,0.0003849,35]
[325321367,1714719046530,-656.34938728,0.00038495,2]
[325321368,1714719046539,-207.53318335,0.00038495,4]
[325321369,1714719046549,-656.39263271,0.00038495,4]
[325321370,1714719046559,-221.07032047,0.00038496,4]
[325321371,1714719046568,-156.23373234,0.00038497,4]
[325321372,1714719046577,-67460.37167158,0.00038497,4]
[325321373,1714719046587,-154.73694719,0.00038497,2]
[325321374,1714719046597,-1137.97466257,0.00038497,4]
[325321375,1714719046606,-380.69882736,0.00038497,4]
[325321376,1714719046615,-714.56650019,0.00038497,2]
[325321377,1714719046625,-318.622662,0.00038497,4]
[325321378,1714719046634,-164.63504971,0.00038497,4]
[325321379,1714719046644,-2466.01464896,0.00038497,4]
[325321380,1714719046653,-417.45090488,0.00038497,4]
[325321381,1714719046662,-160.19327137,0.00038497,4]
[325321382,1714719046672,-151.0,0.00038497,2]
[325321383,1714719046681,-172.124934,0.00038497,2]
[325321384,1714719046690,-172.124934,0.00038497,2]
[325321385,1714719046700,-1000.0,0.00038497,2]
[325321386,1714719046710,-1000.0,0.00038497,2]
[325321387,1714719046719,-1006.74862597,0.00038497,2]
[325321388,1714719046729,-292784.30042249,0.00038499,2]
[325321389,1714719046738,-152.069899,0.00038499,2]
[325321390,1714719046748,-151.0,0.00038499,2]
[325321391,1714719046759,-151.0,0.00038499,2]
[325321392,1714719046768,-500.0,0.00038499,4]
[325321393,1714719046778,-172.124934,0.00038499,2]
[325321394,1714719046787,-172.124934,0.00038499,2]
[325321395,1714719046796,-151.0,0.00038499,2]
[325321396,1714719046806,-151.0,0.00038499,2]
[325321397,1714719046815,-151.0,0.00038499,2]
[325321398,1714719046825,-376.535898,0.00038499,2]
[325321399,1714719046835,-376.535898,0.00038499,2]
[325321400,1714719046844,-151.0,0.00038499,2]
[325321401,1714719046853,-151.0,0.00038499,2]
[325321402,1714719046862,-2930532.24160721,0.000385,60]
[325321403,1714719175409,525.36877253,0.0002,4]
[325321404,1714719938292,-1361.9376623,0.00020913,2]
[325321406,1714720040163,-33.92394874,0.00020913,2]
[325321407,1714720040184,-166.666666,0.00024407,2]
[325321408,1714720040214,-166.666666,0.00025073,2]
[325321409,1714720040237,-166.666666,0.00025738,2]
[325321410,1714720040260,-620.00000008,0.00026041,2]
[325321411,1714720040282,-166.666666,0.00026404,2]
[325321412,1714720040303,-166.666666,0.00026986,2]
[325321413,1714720040324,-166.666666,0.00027069,2]
[325321414,1714720040345,-620.0,0.00027343,2]
[325321415,1714720040366,-8766.32961518,0.000275,2]
[325321416,1714720042105,-19968.60398342,0.000275,2]
[325321420,1714720145125,-9627.1657698,0.000275,2]
[325321422,1714720152239,-4972.0385354,0.000275,2]
[325321423,1714720152273,-166.666666,0.00027734,2]
[325321424,1714720152305,-150.0,0.00028205,3]
[325321425,1714720152337,-1395.86161104,0.00028492,2]
[325321426,1714720152367,-454.946011,0.00028493,2]
[325321427,1714720152398,-159.763384,0.00028493,2]
[325321428,1714720152428,-1004.2023691,0.00028637,120]
[325321429,1714720152456,-413.46,0.0002876,3]
[325321430,1714720152484,-186.81340607,0.00028768,2]
[325321431,1714720152513,-476.56233408,0.00028768,2]
[325321432,1714720152543,-815.4031969,0.00028768,17]
[325321433,1714720152572,-154.94195086,0.00028768,2]
[325321434,1714720152605,-212.26666393,0.00028768,2]
[325321435,1714720152634,-268.39433373,0.00028768,2]
[325321436,1714720152664,-242.09185154,0.00028768,2]
[325321437,1714720152692,-470.15553784,0.00028769,2]
[325321438,1714720152721,-2470.04814533,0.00028769,2]
[325321439,1714720152750,-18244.91239602,0.00028769,2]
[325321440,1714720152779,-49649.44422283,0.0002877,2]
[325321441,1714720152810,-150.0,0.00029377,5]
[325321442,1714720152839,-10745.39,0.0002976,3]
[325321443,1714720152865,-45473.50352791,0.000298,3]
[325321444,1714720153174,-10081.49647209,0.000298,3]
[325321445,1714720153199,-358.94314916,0.00029868,2]
[325321446,1714720153224,-247.84482276,0.00029869,2]
[325321447,1714720153251,-32406.64965019,0.0002987,2]
[325321448,1714720168142,-175.903473,0.00028493,2]
[325321449,1714720168163,-1395.86161104,0.00029869,2]
[325321450,1714720168182,-58792.14418081,0.0002987,2]
[325321595,1714720239136,-150.0,0.00028259,3]
[325321596,1714720239145,-150.0,0.00029426,5]
[325321597,1714720239155,-10740.25356,0.000298,3]
[325321646,1714720368362,1577.44370859,9.999e-05,2]
[325321647,1714720382590,815.6627569,9.999e-05,2]
[325321650,1714720668251,923.59578149,9.999e-05,2]
[325321651,1714720749742,600.0,0.000266,120]
[325321655,1714720954703,488.51147253,0.0002,2]
[325321656,1714720962739,189.0682312,0.0001986,2]
[325321657,1714721020645,154.73694719,9.999e-05,2]
[325321658,1714721210269,162.0455608,0.00019626,2]
[325321659,1714721259977,815.6627569,9.999e-05,2]
[325321688,1714721432793,-2679.19695018,0.00020882,2]
[325321690,1714721432803,-488.51147253,0.00020883,2]
[325321691,1714721432812,-328.33,0.00020885,3]
[325321692,1714721432822,-164.16,0.00020885,3]
[325321693,1714721432831,-492.53,0.00020885,3]
[325321695,1714721432840,-12506.59303617,0.00020893,2]
[325321835,1714721440260,-843.33775205,0.00020892,2]
[325321984,1714721542352,1331.68850454,0.000189,2]
[325321989,1714721814953,212.39219183,9.999e-05,2]
[325321991,1714721843504,887.79233636,0.000189,2]
[325321992,1714721923941,2085.0,0.0002,2]
[325321998,1714722144853,591.86155757,0.000189,2]
[325322000,1714722396350,270.0,0.000208,7]
[325322001,1714722396375,4730.0,0.000208,7]
[325322002,1714722445993,394.57437172,0.000189,2]
[325322006,1714722543900,772.2557481,0.00018767,2]
[325322007,1714722548270,475.45246949,9.999e-05,2]
[325322008,1714722551059,521.36939513,9.999e-05,2]
[325322009,1714722567172,1577.44370859,9.999e-05,2]
[325322010,1714722580082,565.31689857,9.999e-05,2]
[325322011,1714722586466,308.98340641,9.999e-05,2]
[325322012,1714722587771,931.72478894,0.00019808,2]
[325322013,1714722589464,700.89457381,9.999e-05,2]
[325322014,1714722592189,1492.55196417,9.999e-05,2]
[325322015,1714722596559,19251.45469401,9.999e-05,2]
[325322016,1714722602745,1386.03616769,9.999e-05,2]
[325322017,1714722607784,469.15428183,9.999e-05,2]
[325322018,1714722616491,19202.35106111,9.999e-05,2]
[325322019,1714722617772,473.19998042,9.999e-05,2]
[325322020,1714722620725,4180.86118015,9.999e-05,2]
[325322058,1714722632514,13062.10948072,9.999e-05,2]
[325322074,1714722632699,-2679.19695018,0.00020753,2]
[325322076,1714722632711,-2102.35981509,0.00020754,2]
[325322078,1714722632723,-588.52245586,0.00020756,2]
[325322080,1714722632736,-4598.6373137,0.00020778,2]
[325322082,1714722632747,-155.02328462,0.00020843,4]
[325322084,1714722632760,-569.17252068,0.00020843,2]
[325322086,1714722632771,-470.01936938,0.00020843,2]
[325322088,1714722632781,-155.0016707,0.00020843,2]
[325322090,1714722632794,-155.08271801,0.00020843,2]
[325322092,1714722632804,-685.38881592,0.00020843,2]
[325322093,1714722632815,-154.98971108,0.00020843,2]
[325322094,1714722632826,-307.39918121,0.00020843,2]
[325322095,1714722632837,-362.38148801,0.00020844,2]
[325322096,1714722632848,-67460.37167158,0.00020844,2]
[325322097,1714722632859,-13351.05092514,0.00020845,2]
[325322240,1714722638254,-369.74029441,0.00020844,5]
[325322243,1714722638264,-37282.49048994,0.00020845,2]
[325322495,1714722640962,7396.20325034,9.999e-05,2]
[325322912,1714722649275,273.37336231,9.9e-05,2]
[325322932,1714722657360,273.37336231,9.9e-05,2]
[325322933,1714722657720,982.19184887,9.999e-05,2]
[325322934,1714722658158,1092.1017317,9.999e-05,2]
[325322935,1714722666276,273.37336231,9.9e-05,2]
[325322936,1714722668484,5389.30494123,9.999e-05,2]
[325322937,1714722675510,273.37336231,9.9e-05,2]
[325322938,1714722676495,815.6627569,9.999e-05,2]
[325322939,1714722679628,182.49965265,9.999e-05,2]
[325322940,1714722683356,186.41667046,9.999e-05,2]
[325322941,1714722684100,273.37336231,9.9e-05,2]
[325322942,1714722685201,2093.13437232,9.999e-05,2]
[325322943,1714722686745,3790.91017577,9.999e-05,2]
[325322944,1714722727409,161.643618,0.00019589,2]
[325322946,1714722747184,263.04958114,0.000189,2]
[325322947,1714722751905,154.82968734,0.00019589,2]
[325322948,1714722752013,731.04517379,0.000138,2]
[325322949,1714722760749,6542.05500402,0.00019589,2]
[325322950,1714722760778,522.35614016,9.999e-05,2]
[325322951,1714722765884,200.18144808,9.999e-05,2]
[325322952,1714722769886,154.82968734,0.00019589,2]
[325322953,1714722787888,154.82968734,0.00019589,2]
[325322954,1714722803151,488.51147253,0.0002,2]
[325322956,1714722807627,2151.49742399,9.999e-05,2]
[325322959,1714722813892,154.82968734,0.00019589,2]
[325322960,1714722831892,217.53814263,0.00019589,2]
[325322961,1714722835515,19198.47309756,0.00019589,2]
[325322962,1714722851149,12540.9292519,0.00019861,2]
[325322963,1714722853678,308.28948295,0.00019589,2]
[325322964,1714722857520,6264.94228687,0.00019589,2]
[325322965,1714722862790,5812.70291801,0.00019588,2]
[325322966,1714722868338,4464.82167453,0.0002,2]
[325322968,1714722953310,212.39219183,9.999e-05,2]
[325322969,1714722953379,154.87621282,0.0002,2]
[325322970,1714722976576,154.97637476,0.0002,2]
[325322971,1714722984859,24900.0,0.00019847,2]
[325322972,1714722992218,312.53389328,0.00019178,2]
[325322973,1714722992946,500.0,0.00019178,2]
[325322974,1714722992993,550.0,0.00019178,2]
[325322975,1714722993025,500.0,0.00019178,2]
[325322976,1714722993414,500.0,0.00019178,2]
[325322977,1714722993450,500.0,0.00019178,2]
[325322978,1714722993485,500.0,0.00019178,2]
[325322979,1714722993522,500.0,0.00019178,2]
[325322980,1714722993572,500.0,0.00019178,2]
[325322982,1714723048433,175.36638743,0.000189,2]
[325322983,1714723071935,1019.0291218,0.00019844,2]
[325322984,1714723075878,282.87894293,0.000189,2]
[325322985,1714723097457,2655.32370678,0.00015634,2]
[325322986,1714723099605,19202.35106111,0.000189,2]
[325322987,1714723109601,154.82968734,0.000189,2]
[325322988,1714723119620,2325.46165434,0.000189,2]
[325322989,1714723131850,207.81732102,0.000189,2]
[325322990,1714723141987,769.1530622,0.00018761,2]
[325322991,1714723149801,928.84070559,0.00019803,2]
[325322992,1714723192193,25288.5189195,0.0001982,2]
[325322994,1714723203728,158.04036321,9.999e-05,2]
[325322995,1714723227125,409.45081971,9.999e-05,2]
[325322996,1714723232890,314.98214382,9.999e-05,2]
[325322997,1714723235815,412.39463435,9.999e-05,2]
[325322998,1714723237412,446.81393849,9.999e-05,2]
[325322999,1714723246428,154.82968734,9.999e-05,2]
[325323000,1714723247052,527.13951773,9.999e-05,2]
[325323001,1714723248371,235.93722029,9.999e-05,2]
[325323002,1714723253277,154.82968734,9.999e-05,2]
[325323003,1714723254609,445.1993373,9.999e-05,2]
[325323004,1714723267093,208.20456321,9.999e-05,2]
[325323005,1714723274027,1313.76683958,0.0001,2]
[325323006,1714723309592,511.85632889,9.999e-05,2]
[325323007,1714723333139,250.0,0.00019776,2]
[325323008,1714723345423,1273.7297647,0.00019751,2]
[325323009,1714723349533,150.0,0.000189,2]
[325323010,1714723357160,565.31689857,9.999e-05,2]
[325323011,1714723366039,815.6627569,9.999e-05,2]
[325323012,1714723366371,308.98340641,9.999e-05,2]
[325323013,1714723368001,475.45246949,9.999e-05,2]
[325323014,1714723371904,1492.55196417,9.999e-05,2]
[325323046,1714723434493,794.6820721,0.00019729,2]
[325323052,1714723443648,1395.86161104,9.999e-05,2]
[325323054,1714723445896,2009.5119061,0.00019729,2]
[325323057,1714723449847,154.82968734,9.999e-05,2]
[325323060,1714723454394,521.36939513,9.999e-05,2]
[325323061,1714723459946,1577.44370859,9.999e-05,2]
[325323063,1714723462273,24900.0,0.00019729,2]
[325323064,1714723499965,932.7719172,0.00019746,2]
[325323065,1714723526739,1092.1017317,9.999e-05,2]
[325323078,1714723560135,1183.5941224,0.00019864,2]
[325323079,1714723568155,700.89457381,9.999e-05,2]
[325323080,1714723569527,154.82968734,9.999e-05,2]
[325323081,1714723579900,339.86016633,9.999e-05,2]
[325323082,1714723598266,552.23076902,9.999e-05,2]
[325323083,1714723610438,154.82968734,9.999e-05,2]
[325323084,1714723630905,522.35614016,9.999e-05,2]
[325323085,1714723635784,731.04517379,0.000138,2]
[325323086,1714723637688,488.51147253,0.0002,2]
[325323087,1714723650864,150.0,0.000189,2]
[325323088,1714723670555,25529.238159,0.00019576,2]
[325323089,1714723689509,200.18144808,9.999e-05,2]
[325323090,1714723710997,212.39219183,9.999e-05,2]
[325323091,1714723718826,186.8984129,0.00019505,2]
[325323092,1714723720747,1622.54742962,9.999e-05,2]
[325323093,1714723729255,2947.573291,0.0001949,2]
[325323094,1714723733344,683.61842486,9.999e-05,2]
[325323095,1714723766194,775.30651495,9.999e-05,2]
[325323096,1714723794463,362.49207178,9.999e-05,2]
[325323097,1714723796413,473.19998042,9.999e-05,2]
[325323137,1714723832420,-200.18144808,0.00020379,2]
[325323139,1714723832429,-154.82968734,0.00020379,2]
[325323141,1714723832438,-475.45246949,0.0002038,2]
[325323142,1714723832448,-815.6627569,0.0002038,2]
[325323144,1714723832457,-158.04036321,0.0002038,2]
[325323145,1714723832467,-522.35614016,0.0002038,2]
[325323146,1714723832477,-446.81393849,0.0002038,2]
[325323147,1714723832487,-3052.77811249,0.0002038,2]
[325323148,1714723832497,-565.31689857,0.00020381,2]
[325323149,1714723832507,-1492.55196417,0.00020381,2]
[325323150,1714723832517,-2627.83453245,0.00020381,2]
[325323151,1714723832527,-154.82968734,0.00020381,2]
[325323152,1714723832537,-409.45081971,0.00020382,2]
[325323153,1714723832546,-527.13951773,0.00020382,2]
[325323154,1714723832556,-154.82968734,0.00020383,2]
[325323155,1714723832566,-7877.46126103,0.00020383,2]
[325323156,1714723832575,-5812.70291801,0.00020383,2]
[325323157,1714723832584,-2102.35981509,0.00020384,2]
[325323158,1714723832594,-1880.67776421,0.00020384,2]
[325323159,1714723832603,-212.39219183,0.00020384,2]
[325323160,1714723832617,-323.82177867,0.00020385,2]
[325323161,1714723832627,-308.98340641,0.00020472,2]
[325323162,1714723832638,-20206.9053272,0.00020472,2]
[325323163,1714723832647,-488.51147253,0.00020473,2]
[325323164,1714723832658,-208.20456321,0.00020473,2]
[325323165,1714723832669,-477.52,0.00020473,3]
[325323166,1714723832680,-511.85632889,0.00020474,2]
[325323167,1714723832692,-1395.86161104,0.00020474,2]
[325323168,1714723832701,-472.70988666,0.00020474,2]
[325323169,1714723832710,-21111.93743687,0.00020476,2]
[325323210,1714723838443,-154.82968734,0.00020379,2]
[325323212,1714723838452,-700.89457381,0.00020379,2]
[325323214,1714723838461,-1313.76683958,0.00020379,2]
[325323216,1714723838471,-94.50642803,0.00020476,2]
[325323220,1714723838504,-1007.88336724,0.00020476,2]
[325323442,1714723840619,-4741.36238708,0.00020476,2]
[325323444,1714723840630,-5203.74691087,0.00020476,2]
[325323459,1714723840766,-27087.83633627,0.00020476,2]
[325323461,1714723840775,-181.9,0.00020477,3]
[325323463,1714723840786,-636.66,0.00020477,3]
[325323465,1714723840795,-318.33,0.00020477,3]
[325323467,1714723840804,-159.16,0.00020477,3]
[325323469,1714723840813,-362.27090424,0.00020479,2]
[325323471,1714723840822,-67460.37167158,0.0002048,2]
[325323473,1714723840831,-683.2148898,0.00020485,2]
[325323475,1714723840841,-770.2641737,0.00020486,2]
[325323477,1714723840850,-151.94811849,0.00020492,2]
[325323479,1714723840859,-323.82177865,0.00020559,2]
[325323481,1714723840868,-1625.67206045,0.00020589,2]
[325323483,1714723840878,-732.54473765,0.00020592,2]
[325323485,1714723840888,-309.53569955,0.00020592,2]
[325323487,1714723840897,-1000.0,0.00020592,2]
[325323489,1714723840907,-558.094674,0.00020595,2]
[325323491,1714723840916,-309.62094788,0.00020595,2]
[325323493,1714723840925,-1000.0,0.00020603,2]
[325323494,1714723840934,-1000.0,0.00020674,2]
[325323495,1714723840943,-156.56384195,0.000207,2]
[325323496,1714723840952,-156.56384194,0.000207,2]
[325323497,1714723840961,-156.56384194,0.000207,2]
[325323498,1714723840970,-323.82177865,0.00020732,2]
[325323499,1714723840979,-309.55115161,0.0002083,2]
[325323500,1714723840988,-2590.79776208,0.0002083,2]
[325323501,1714723840997,-291.72490529,0.0002083,2]
[325323502,1714723841006,-309.53569955,0.00020831,2]
[325323503,1714723841015,-15676.49529171,0.00020831,2]
[325323504,1714723841024,-174.85038906,0.00020832,2]
[325323505,1714723841033,-1898.2228141,0.00020833,2]
[325323506,1714723841042,-1094.51432239,0.00020833,2]
[325323507,1714723841051,-379.53531224,0.0002084,2]
[325323508,1714723841060,-154.91548878,0.00020843,2]
[325323509,1714723841069,-314.02564075,0.00020843,2]
[325323510,1714723841078,-942.66550869,0.00020843,2]
[325323511,1714723841087,-164.12449939,0.00020843,2]
[325323512,1714723841097,-316.0754263,0.00020843,2]
[325323513,1714723841106,-155.02076622,0.00020843,2]
[325323514,1714723841115,-509.30273792,0.00020843,2]
[325323515,1714723841124,-236.54555183,0.00020844,2]
[325323516,1714723841133,-154.9642599,0.00020847,2]
[325323517,1714723841142,-155.09442044,0.00020849,2]
[325323519,1714723841151,-194.50813282,0.00020851,2]
[325323520,1714723841161,-206.3030976,0.00020851,2]
[325323522,1714723841170,-550.1739942,0.00020852,2]
[325323524,1714723841178,-268.39433373,0.00020876,2]
[325323526,1714723841188,-154.94195086,0.00020877,2]
[325323528,1714723841198,-266.803695,0.0002089,2]
[325323530,1714723841207,-274.01657406,0.0002089,2]
[325323532,1714723841216,-151.992492,0.00020891,2]
[325323534,1714723841224,-598.282573,0.00020891,2]
[325323536,1714723841233,-598.282573,0.00020891,2]
[325323538,1714723841243,-151.0,0.00020891,2]
[325323540,1714723841252,-151.0,0.00020891,2]
[325323542,1714723841261,-151.0,0.00020891,2]